[Event "*** Titled Tuesday Blitz"]
[Site "Chess.com"]
[Date "2020.05.26"]
[Round "5"]
[White "djano"]
[Black "Gloomy_Wanderer"]
[Result "0-1"]
[WhiteElo "2447"]
[BlackElo "2746"]
[TimeControl "180+1"]
[EndTime "10:55:54 PDT"]
[Termination "Gloomy_Wanderer won by resignation"]

1. d4 {[%clk 0:03:00.9]} 1... Nf6 {[%clk 0:02:56.2]} 2. Nf3 {[%clk 0:03:00.5]}
2... e6 {[%clk 0:02:56.4]} 3. g3 {[%clk 0:02:59]} 3... b5 {[%clk 0:02:56.1]} 4.
Bg2 {[%clk 0:02:51.9]} 4... Bb7 {[%clk 0:02:55.9]} 5. O-O {[%clk 0:02:51.9]}
5... c5 {[%clk 0:02:54.7]} 6. c3 {[%clk 0:02:47.3]} 6... Be7 {[%clk 0:02:52.8]}
7. a4 {[%clk 0:02:37]} 7... b4 {[%clk 0:02:51.9]} 8. dxc5 {[%clk 0:02:35]} 8...
Bxc5 {[%clk 0:02:50.6]} 9. a5 {[%clk 0:02:24.1]} 9... Na6 {[%clk 0:02:49]} 10.
c4 {[%clk 0:02:15.7]} 10... O-O {[%clk 0:02:35.6]} 11. Nbd2 {[%clk 0:02:13.4]}
11... d5 {[%clk 0:02:34.5]} 12. cxd5 {[%clk 0:02:11.9]} 12... Bxd5 {[%clk
0:02:33.9]} 13. Nb3 {[%clk 0:02:08.1]} 13... Be7 {[%clk 0:02:34]} 14. Bf4 {[%clk
0:01:58.5]} 14... Rc8 {[%clk 0:02:30.4]} 15. Nbd2 {[%clk 0:01:40.2]} 15... Nc5
{[%clk 0:02:25.5]} 16. Ne5 {[%clk 0:01:29.2]} 16... h6 {[%clk 0:02:01.1]} 17.
Ndf3 {[%clk 0:01:25.5]} 17... Nb3 {[%clk 0:01:58.4]} 18. Rb1 {[%clk 0:01:19.6]}
18... Nxa5 {[%clk 0:01:49.8]} 19. Nd3 {[%clk 0:01:03.9]} 19... Nc6 {[%clk
0:01:43.3]} 20. Qa4 {[%clk 0:01:02.6]} 20... Qb6 {[%clk 0:01:41.8]} 21. Ra1
{[%clk 0:00:59.3]} 21... a5 {[%clk 0:01:33.8]} 22. h3 {[%clk 0:00:50.4]} 22...
Rfd8 {[%clk 0:01:33.2]} 23. Rfc1 {[%clk 0:00:49.6]} 23... Ne4 {[%clk 0:01:26.6]}
24. Be3 {[%clk 0:00:48.4]} 24... Qb7 {[%clk 0:01:21.9]} 25. Nf4 {[%clk
0:00:47.5]} 25... Bf6 {[%clk 0:01:09.6]} 26. Nxd5 {[%clk 0:00:47.7]} 26... exd5
{[%clk 0:01:10.2]} 27. Qb3 {[%clk 0:00:33.6]} 27... Qb5 {[%clk 0:00:58.6]} 28.
Qd1 {[%clk 0:00:20.1]} 28... Bxb2 {[%clk 0:00:55.6]} 29. Ra2 {[%clk 0:00:13.3]}
29... Nc3 {[%clk 0:00:49.5]} 30. Rxc3 {[%clk 0:00:11.7]} 30... Bxc3 {[%clk
0:00:49.3]} 31. Nd4 {[%clk 0:00:10.2]} 31... Bxd4 {[%clk 0:00:41]} 32. Bxd4
{[%clk 0:00:11.1]} 32... b3 {[%clk 0:00:40.4]} 33. Rb2 {[%clk 0:00:10]} 33...
Nxd4 {[%clk 0:00:40.6]} 34. Qxd4 {[%clk 0:00:10.9]} 34... a4 {[%clk 0:00:40.8]}
35. Kh2 {[%clk 0:00:09.4]} 35... a3 {[%clk 0:00:40.3]} 0-1

[Event "*** Titled Tuesday Blitz"]
[Site "Chess.com"]
[Date "2020.05.26"]
[Round "5"]
[White "tamarozi99"]
[Black "alekschess100"]
[Result "0-1"]
[WhiteElo "1999"]
[BlackElo "2230"]
[TimeControl "180+1"]
[EndTime "10:55:58 PDT"]
[Termination "alekschess100 won by resignation"]

1. e4 {[%clk 0:03:00.9]} 1... c6 {[%clk 0:02:59.1]} 2. d4 {[%clk 0:03:00.3]}
2... d5 {[%clk 0:03:00]} 3. e5 {[%clk 0:03:00.2]} 3... g6 {[%clk 0:02:59.7]} 4.
c3 {[%clk 0:02:52.4]} 4... h5 {[%clk 0:02:59.7]} 5. h4 {[%clk 0:02:51.5]} 5...
Nh6 {[%clk 0:02:58]} 6. Bd3 {[%clk 0:02:51.5]} 6... Bg7 {[%clk 0:02:45.6]} 7.
Qc2 {[%clk 0:02:44.2]} 7... Bf5 {[%clk 0:02:42.2]} 8. Bxf5 {[%clk 0:02:26.1]}
8... Nxf5 {[%clk 0:02:40.8]} 9. Ne2 {[%clk 0:02:25.7]} 9... c5 {[%clk
0:02:34.1]} 10. Bg5 {[%clk 0:02:17.5]} 10... Nc6 {[%clk 0:02:32.3]} 11. Qa4
{[%clk 0:01:38.3]} 11... cxd4 {[%clk 0:02:28.3]} 12. cxd4 {[%clk 0:01:37.9]}
12... Qb6 {[%clk 0:02:15.6]} 13. O-O {[%clk 0:01:12.8]} 13... Nxd4 {[%clk
0:01:48.5]} 14. Nxd4 {[%clk 0:01:06.6]} 14... Qxd4 {[%clk 0:01:46.5]} 15. Qb5
{[%clk 0:01:06.4]} 15... O-O {[%clk 0:01:39.7]} 16. Qxb7 {[%clk 0:00:56.2]}
16... Nxe5 {[%clk 0:01:32.4]} 17. Nc3 {[%clk 0:00:39.4]} 17... e6 {[%clk
0:01:20.4]} 18. Rad1 {[%clk 0:00:38]} 18... Qb6 {[%clk 0:01:18.8]} 19. Qe7
{[%clk 0:00:28.5]} 19... Rfe8 {[%clk 0:01:11.3]} 20. Qa3 {[%clk 0:00:26.8]}
20... Nc4 {[%clk 0:01:11]} 21. Qb3 {[%clk 0:00:16.5]} 21... Nxb2 {[%clk
0:00:51.6]} 22. Qxb6 {[%clk 0:00:15]} 22... axb6 {[%clk 0:00:51]} 23. Nb5 {[%clk
0:00:14.7]} 23... Nxd1 {[%clk 0:00:50.1]} 24. Nc7 {[%clk 0:00:12.9]} 24... Nc3
{[%clk 0:00:40]} 25. Nxe8 {[%clk 0:00:11.5]} 25... Rxe8 {[%clk 0:00:39.4]} 26.
Rc1 {[%clk 0:00:11.8]} 26... Ra8 {[%clk 0:00:38.4]} 27. Bd2 {[%clk 0:00:10]}
27... d4 {[%clk 0:00:38]} 28. Rc2 {[%clk 0:00:09.2]} 28... Rxa2 {[%clk
0:00:37.5]} 29. Rxa2 {[%clk 0:00:08.4]} 29... Nxa2 {[%clk 0:00:37.7]} 30. Kf1
{[%clk 0:00:09.1]} 30... b5 {[%clk 0:00:37.4]} 31. Ke2 {[%clk 0:00:09.1]} 31...
b4 {[%clk 0:00:38]} 32. Kd1 {[%clk 0:00:08.6]} 32... b3 {[%clk 0:00:37.9]} 33.
f3 {[%clk 0:00:07.1]} 33... d3 {[%clk 0:00:38.1]} 34. Bc1 {[%clk 0:00:06.1]}
34... b2 {[%clk 0:00:38.1]} 0-1

[Event "*** Titled Tuesday Blitz"]
[Site "Chess.com"]
[Date "2020.05.26"]
[Round "5"]
[White "2L8IWUN"]
[Black "ErikRonka"]
[Result "1-0"]
[WhiteElo "2548"]
[BlackElo "2375"]
[TimeControl "180+1"]
[EndTime "10:56:01 PDT"]
[Termination "2L8IWUN won on time"]

1. d4 {[%clk 0:03:00.9]} 1... d5 {[%clk 0:02:53.4]} 2. Nf3 {[%clk 0:03:00.9]}
2... Nf6 {[%clk 0:02:50.2]} 3. c4 {[%clk 0:02:59.8]} 3... c6 {[%clk 0:02:49.9]}
4. Nc3 {[%clk 0:02:59.1]} 4... e6 {[%clk 0:02:49.6]} 5. e3 {[%clk 0:02:58.5]}
5... Nbd7 {[%clk 0:02:49.3]} 6. Qc2 {[%clk 0:02:57.6]} 6... Bd6 {[%clk
0:02:48.3]} 7. b3 {[%clk 0:02:57.8]} 7... O-O {[%clk 0:02:42.3]} 8. Ke2 {[%clk
0:02:57.8]} 8... Qe7 {[%clk 0:02:13.3]} 9. Ke1 {[%clk 0:02:51.3]} 9... e5 {[%clk
0:02:10.3]} 10. Be2 {[%clk 0:02:40]} 10... exd4 {[%clk 0:01:46.8]} 11. Nxd4
{[%clk 0:02:39.4]} 11... Ne5 {[%clk 0:01:44.7]} 12. h3 {[%clk 0:02:34.9]} 12...
Re8 {[%clk 0:01:39.3]} 13. Bb2 {[%clk 0:02:31.7]} 13... c5 {[%clk 0:01:33.3]}
14. Ndb5 {[%clk 0:02:24.7]} 14... d4 {[%clk 0:01:33.3]} 15. Nxd6 {[%clk
0:02:19.3]} 15... Qxd6 {[%clk 0:01:26.8]} 16. Rd1 {[%clk 0:02:06.8]} 16... Qe7
{[%clk 0:00:36.9]} 17. exd4 {[%clk 0:01:59.1]} 17... cxd4 {[%clk 0:00:36.1]} 18.
Rxd4 {[%clk 0:01:58.1]} 18... Nc6 {[%clk 0:00:34.7]} 19. Rd2 {[%clk 0:01:53.3]}
19... Nb4 {[%clk 0:00:34.1]} 20. Qb1 {[%clk 0:01:48.3]} 20... g6 {[%clk
0:00:33]} 21. a3 {[%clk 0:01:39.6]} 21... Bf5 {[%clk 0:00:32.8]} 22. Qd1 {[%clk
0:01:36]} 22... Nc6 {[%clk 0:00:23.7]} 23. Kf1 {[%clk 0:01:24.4]} 23... Rad8
{[%clk 0:00:23.4]} 24. Nd5 {[%clk 0:01:18.9]} 24... Nxd5 {[%clk 0:00:23.3]} 25.
cxd5 {[%clk 0:01:19.8]} 25... Ne5 {[%clk 0:00:23.1]} 26. g4 {[%clk 0:01:11.7]}
26... Be4 {[%clk 0:00:23.1]} 27. d6 {[%clk 0:01:07.1]} 27... Qh4 {[%clk
0:00:16.8]} 28. Rh2 {[%clk 0:01:03.9]} 28... Bc6 {[%clk 0:00:16.5]} 29. Bc3
{[%clk 0:00:56.1]} 29... Qg5 {[%clk 0:00:12.9]} 30. h4 {[%clk 0:00:49]} 30...
Qf4 {[%clk 0:00:13]} 31. Rh3 {[%clk 0:00:48.8]} 31... Rd7 {[%clk 0:00:10.7]} 32.
Rd4 {[%clk 0:00:45.4]} 32... Qf6 {[%clk 0:00:10.3]} 33. f4 {[%clk 0:00:43.7]}
33... Nxg4 {[%clk 0:00:01.9]} 34. Bxg4 {[%clk 0:00:40.3]} 34... Rdd8 {[%clk
0:00:02.3]} 35. Kg1 {[%clk 0:00:37.2]} 1-0

[Event "*** Titled Tuesday Blitz"]
[Site "Chess.com"]
[Date "2020.05.26"]
[Round "5"]
[White "CMS13"]
[Black "Lector118"]
[Result "0-1"]
[WhiteElo "2200"]
[BlackElo "2410"]
[TimeControl "180+1"]
[EndTime "10:56:02 PDT"]
[Termination "Lector118 won by checkmate"]

1. e4 {[%clk 0:03:00.9]} 1... e6 {[%clk 0:02:59.2]} 2. d4 {[%clk 0:03:00.2]}
2... d5 {[%clk 0:02:59.8]} 3. Nc3 {[%clk 0:03:00.2]} 3... Bb4 {[%clk 0:02:57]}
4. Ne2 {[%clk 0:02:59.9]} 4... Nc6 {[%clk 0:02:56.1]} 5. a3 {[%clk 0:02:59.5]}
5... Ba5 {[%clk 0:02:54.5]} 6. b4 {[%clk 0:02:56.4]} 6... Bb6 {[%clk 0:02:54.5]}
7. Bb2 {[%clk 0:02:35.7]} 7... Nge7 {[%clk 0:02:30.6]} 8. g3 {[%clk 0:02:35]}
8... dxe4 {[%clk 0:02:20]} 9. Nxe4 {[%clk 0:02:15.8]} 9... Nf5 {[%clk
0:02:02.6]} 10. Nc5 {[%clk 0:02:04.1]} 10... Qd5 {[%clk 0:01:48.9]} 11. Rg1
{[%clk 0:01:57.6]} 11... O-O {[%clk 0:01:39.5]} 12. Bg2 {[%clk 0:01:57.3]} 12...
Qd8 {[%clk 0:01:33.6]} 13. Qd3 {[%clk 0:01:47.9]} 13... a5 {[%clk 0:01:14.4]}
14. b5 {[%clk 0:01:46.2]} 14... Ncxd4 {[%clk 0:01:12.9]} 15. Nxd4 {[%clk
0:01:38.2]} 15... Bxc5 {[%clk 0:01:07.9]} 16. O-O-O {[%clk 0:01:18.5]} 16...
Nxd4 {[%clk 0:01:00.5]} 17. Bxd4 {[%clk 0:01:18]} 17... Bxd4 {[%clk 0:00:45]}
18. Qxd4 {[%clk 0:01:18.3]} 18... Qe7 {[%clk 0:00:45.9]} 19. Qc3 {[%clk
0:01:13.5]} 19... Rb8 {[%clk 0:00:41.7]} 20. Be4 {[%clk 0:01:10.4]} 20... b6
{[%clk 0:00:40.4]} 21. g4 {[%clk 0:01:03.1]} 21... Qg5+ {[%clk 0:00:38.4]} 22.
Kb1 {[%clk 0:00:59.2]} 22... Qxb5+ {[%clk 0:00:38.5]} 23. Ka1 {[%clk 0:00:56.7]}
23... Ba6 {[%clk 0:00:33.4]} 24. Rg3 {[%clk 0:00:47.4]} 24... Rfd8 {[%clk
0:00:27.2]} 25. Bd3 {[%clk 0:00:39.7]} 25... Qg5 {[%clk 0:00:14.7]} 26. Qxc7
{[%clk 0:00:35.3]} 26... Rbc8 {[%clk 0:00:11.2]} 27. Qxb6 {[%clk 0:00:24]} 27...
Rb8 {[%clk 0:00:05.5]} 28. Qxa6 {[%clk 0:00:22.7]} 28... Qe5+ {[%clk 0:00:04.3]}
29. c3 {[%clk 0:00:20.4]} 29... Qxc3+ {[%clk 0:00:04.2]} 30. Ka2 {[%clk
0:00:19.7]} 30... Qb2# {[%clk 0:00:05.1]} 0-1

[Event "*** Titled Tuesday Blitz"]
[Site "Chess.com"]
[Date "2020.05.26"]
[Round "5"]
[White "rakshi2005"]
[Black "blitzking1729"]
[Result "0-1"]
[WhiteElo "2320"]
[BlackElo "2509"]
[TimeControl "180+1"]
[EndTime "10:56:03 PDT"]
[Termination "blitzking1729 won by resignation"]

1. e4 {[%clk 0:03:00.9]} 1... d6 {[%clk 0:02:58.6]} 2. d4 {[%clk 0:03:00.7]}
2... Nf6 {[%clk 0:02:58.6]} 3. Nc3 {[%clk 0:03:01]} 3... e5 {[%clk 0:02:58.6]}
4. dxe5 {[%clk 0:03:00.2]} 4... dxe5 {[%clk 0:02:59.5]} 5. Qxd8+ {[%clk
0:03:00.5]} 5... Kxd8 {[%clk 0:03:00.4]} 6. Bc4 {[%clk 0:03:00.9]} 6... Be6
{[%clk 0:02:58.7]} 7. Bxe6 {[%clk 0:03:00.5]} 7... fxe6 {[%clk 0:02:59.6]} 8.
Nf3 {[%clk 0:03:00.4]} 8... Bd6 {[%clk 0:02:59.1]} 9. Be3 {[%clk 0:02:57.4]}
9... Nbd7 {[%clk 0:02:55.3]} 10. O-O-O {[%clk 0:02:57.1]} 10... a6 {[%clk
0:02:54.5]} 11. Nd2 {[%clk 0:02:55]} 11... Ke7 {[%clk 0:02:54.1]} 12. a4 {[%clk
0:02:54.2]} 12... Bc5 {[%clk 0:02:48.4]} 13. Bxc5+ {[%clk 0:02:50.7]} 13... Nxc5
{[%clk 0:02:49.3]} 14. f3 {[%clk 0:02:51.2]} 14... Rhd8 {[%clk 0:02:11]} 15. b4
{[%clk 0:02:49.9]} 15... Ncd7 {[%clk 0:02:09.6]} 16. Nc4 {[%clk 0:02:49.6]}
16... Ne8 {[%clk 0:02:09.6]} 17. Kb2 {[%clk 0:02:46.9]} 17... Nd6 {[%clk
0:02:09.4]} 18. Ne3 {[%clk 0:02:33.7]} 18... Nb6 {[%clk 0:02:06.4]} 19. a5
{[%clk 0:02:28.9]} 19... Nbc4+ {[%clk 0:02:05.1]} 20. Nxc4 {[%clk 0:02:29.1]}
20... Nxc4+ {[%clk 0:02:06]} 21. Kb3 {[%clk 0:02:29.7]} 21... Nd2+ {[%clk
0:01:50.1]} 22. Kb2 {[%clk 0:02:26.3]} 22... Rd4 {[%clk 0:01:49.1]} 23. Ne2
{[%clk 0:02:22.9]} 23... Rd6 {[%clk 0:01:39.4]} 24. Nc3 {[%clk 0:01:43.1]} 24...
Rad8 {[%clk 0:01:33.6]} 25. Nd5+ {[%clk 0:01:35.4]} 25... exd5 {[%clk
0:01:31.4]} 26. Rxd2 {[%clk 0:01:35.6]} 26... dxe4 {[%clk 0:01:31.5]} 27. Rxd6
{[%clk 0:01:33.3]} 27... Rxd6 {[%clk 0:01:30.7]} 28. fxe4 {[%clk 0:01:33.6]}
28... Rd4 {[%clk 0:01:30.5]} 29. Re1 {[%clk 0:01:32.5]} 29... Rxb4+ {[%clk
0:01:29.7]} 30. Kc3 {[%clk 0:01:31.5]} 30... Ra4 {[%clk 0:01:29.4]} 31. Rb1
{[%clk 0:01:30.7]} 31... Rxa5 {[%clk 0:01:28.1]} 32. Rxb7 {[%clk 0:01:30.7]}
32... Kd6 {[%clk 0:01:27.2]} 33. Kd3 {[%clk 0:01:31]} 33... Ra3+ {[%clk
0:01:25.7]} 34. c3 {[%clk 0:01:31]} 34... Ra2 {[%clk 0:01:25.6]} 35. Ra7 {[%clk
0:01:27.9]} 35... Kc6 {[%clk 0:01:20.2]} 36. Ra8 {[%clk 0:01:18.5]} 36... h6
{[%clk 0:01:19.8]} 37. g4 {[%clk 0:01:15.8]} 37... Kb7 {[%clk 0:01:08.3]} 38.
Rg8 {[%clk 0:01:14.6]} 38... g5 {[%clk 0:01:07]} 39. Re8 {[%clk 0:01:07.8]}
39... Rxh2 {[%clk 0:01:05.6]} 40. Rxe5 {[%clk 0:01:07.8]} 40... Rh4 {[%clk
0:01:04.2]} 41. Re6 {[%clk 0:01:06.9]} 41... a5 {[%clk 0:01:01.8]} 42. Kc4
{[%clk 0:01:04.4]} 42... Rxg4 {[%clk 0:01:01.1]} 43. Kd5 {[%clk 0:01:01]} 43...
h5 {[%clk 0:01:00.4]} 44. Rh6 {[%clk 0:00:59]} 44... h4 {[%clk 0:01:00.2]} 45.
e5 {[%clk 0:00:58.9]} 45... Rg1 {[%clk 0:00:53.4]} 46. e6 {[%clk 0:00:58.1]}
46... Re1 {[%clk 0:00:49.9]} 47. Rg6 {[%clk 0:00:57.8]} 47... h3 {[%clk
0:00:48.6]} 48. Rxg5 {[%clk 0:00:58.1]} 48... h2 {[%clk 0:00:48.8]} 49. Rh5
{[%clk 0:00:43.8]} 49... h1=Q+ {[%clk 0:00:47.2]} 50. Rxh1 {[%clk 0:00:44.3]}
50... Rxh1 {[%clk 0:00:48.1]} 51. e7 {[%clk 0:00:45]} 51... Re1 {[%clk
0:00:47.6]} 52. e8=Q {[%clk 0:00:44.3]} 52... Rxe8 {[%clk 0:00:46.9]} 0-1

[Event "*** Titled Tuesday Blitz"]
[Site "Chess.com"]
[Date "2020.05.26"]
[Round "5"]
[White "Feegus"]
[Black "ulkaf961"]
[Result "1-0"]
[WhiteElo "2467"]
[BlackElo "2194"]
[TimeControl "180+1"]
[EndTime "10:56:03 PDT"]
[Termination "Feegus won by resignation"]

1. Nf3 {[%clk 0:02:56.6]} 1... Nf6 {[%clk 0:02:58.1]} 2. g3 {[%clk 0:02:57.4]}
2... d5 {[%clk 0:02:56.6]} 3. Bg2 {[%clk 0:02:56.3]} 3... Bf5 {[%clk 0:02:51.6]}
4. O-O {[%clk 0:02:57.2]} 4... h6 {[%clk 0:02:51.8]} 5. d3 {[%clk 0:02:52.6]}
5... e6 {[%clk 0:02:50]} 6. Nbd2 {[%clk 0:02:52.1]} 6... Be7 {[%clk 0:02:47.6]}
7. c4 {[%clk 0:02:52.1]} 7... O-O {[%clk 0:02:39.1]} 8. b3 {[%clk 0:02:52]} 8...
a5 {[%clk 0:02:36.4]} 9. a3 {[%clk 0:02:51.1]} 9... Na6 {[%clk 0:02:26.9]} 10.
Bb2 {[%clk 0:02:50.4]} 10... Nc5 {[%clk 0:02:11.8]} 11. Ra2 {[%clk 0:02:50.4]}
11... Re8 {[%clk 0:02:10.9]} 12. Qa1 {[%clk 0:02:37.5]} 12... Ncd7 {[%clk
0:01:26.8]} 13. Rc1 {[%clk 0:02:33.7]} 13... c6 {[%clk 0:01:21.2]} 14. Ne5
{[%clk 0:02:33.2]} 14... Nxe5 {[%clk 0:01:16.9]} 15. Bxe5 {[%clk 0:02:34.1]}
15... Bd6 {[%clk 0:01:13.8]} 16. Nf3 {[%clk 0:02:29.5]} 16... Bxe5 {[%clk
0:01:13.5]} 17. Nxe5 {[%clk 0:02:29.6]} 17... Nd7 {[%clk 0:01:09.2]} 18. Nxd7
{[%clk 0:02:28.2]} 18... Qxd7 {[%clk 0:01:09.3]} 19. b4 {[%clk 0:02:29.1]} 19...
dxc4 {[%clk 0:00:47.2]} 20. Rxc4 {[%clk 0:02:28.5]} 20... e5 {[%clk 0:00:40.1]}
21. Qc3 {[%clk 0:02:22.3]} 21... Be6 {[%clk 0:00:39.2]} 22. Rb2 {[%clk
0:02:14.1]} 22... Bxc4 {[%clk 0:00:38.9]} 23. Qxc4 {[%clk 0:02:15]} 23... Qd4
{[%clk 0:00:38.8]} 24. Qxd4 {[%clk 0:02:02.3]} 24... exd4 {[%clk 0:00:38.4]} 25.
Bf3 {[%clk 0:02:02.8]} 25... Re7 {[%clk 0:00:32.3]} 26. b5 {[%clk 0:02:01.1]}
26... c5 {[%clk 0:00:25.5]} 27. Bd5 {[%clk 0:01:53.3]} 27... Rd8 {[%clk
0:00:23.5]} 28. Be4 {[%clk 0:01:29.5]} 28... Rd6 {[%clk 0:00:23.6]} 29. Rc2
{[%clk 0:01:27.5]} 29... Rc7 {[%clk 0:00:21.7]} 30. Rc4 {[%clk 0:01:24.9]} 30...
g6 {[%clk 0:00:22.2]} 31. f4 {[%clk 0:01:24.3]} 31... Kg7 {[%clk 0:00:22.6]} 32.
g4 {[%clk 0:01:23.8]} 32... Rb6 {[%clk 0:00:20.5]} 33. a4 {[%clk 0:01:22.8]}
33... Rf6 {[%clk 0:00:21.1]} 34. f5 {[%clk 0:01:21.7]} 34... h5 {[%clk
0:00:20.2]} 35. g5 {[%clk 0:01:21.2]} 35... Rd6 {[%clk 0:00:20.1]} 36. f6+
{[%clk 0:01:21.2]} 36... Kf8 {[%clk 0:00:20.1]} 37. h4 {[%clk 0:01:20.8]} 37...
Re6 {[%clk 0:00:20.3]} 38. Kf2 {[%clk 0:01:20.3]} 38... Ke8 {[%clk 0:00:20.1]}
39. Kf3 {[%clk 0:01:20.7]} 39... Kd7 {[%clk 0:00:20.1]} 40. Bd5 {[%clk 0:01:19]}
40... Kd6 {[%clk 0:00:20.1]} 41. Bxe6 {[%clk 0:01:18.5]} 41... Kxe6 {[%clk
0:00:20.7]} 42. e3 {[%clk 0:01:07.2]} 42... Kd5 {[%clk 0:00:18.6]} 43. exd4
{[%clk 0:01:05.7]} 43... b6 {[%clk 0:00:10.4]} 44. dxc5 {[%clk 0:01:03]} 44...
bxc5 {[%clk 0:00:10.5]} 45. Re4 {[%clk 0:01:02.6]} 1-0

[Event "*** Titled Tuesday Blitz"]
[Site "Chess.com"]
[Date "2020.05.26"]
[Round "5"]
[White "mohamed-damaj"]
[Black "Morshynska"]
[Result "0-1"]
[WhiteElo "2304"]
[BlackElo "2183"]
[TimeControl "180+1"]
[EndTime "10:56:03 PDT"]
[Termination "Morshynska won on time"]

1. e4 {[%clk 0:03:00.9]} 1... Nc6 {[%clk 0:02:58.5]} 2. c4 {[%clk 0:02:56.4]}
2... e5 {[%clk 0:02:57.7]} 3. Nf3 {[%clk 0:02:55.3]} 3... Bc5 {[%clk 0:02:44.1]}
4. Nxe5 {[%clk 0:02:37.6]} 4... Nxe5 {[%clk 0:02:43.3]} 5. d4 {[%clk 0:02:36.1]}
5... Bb4+ {[%clk 0:02:42]} 6. Bd2 {[%clk 0:02:23.8]} 6... Bxd2+ {[%clk
0:02:41.1]} 7. Nxd2 {[%clk 0:02:24.7]} 7... Ng6 {[%clk 0:02:35.4]} 8. Bd3 {[%clk
0:02:22.9]} 8... d6 {[%clk 0:02:29]} 9. O-O {[%clk 0:02:21.2]} 9... Nf4 {[%clk
0:02:19.4]} 10. Bc2 {[%clk 0:02:16]} 10... h5 {[%clk 0:01:48.2]} 11. Kh1 {[%clk
0:01:42.2]} 11... h4 {[%clk 0:01:32.4]} 12. Qf3 {[%clk 0:01:03.7]} 12... Qg5
{[%clk 0:01:22]} 13. g3 {[%clk 0:00:36.5]} 13... Nh3 {[%clk 0:00:53.8]} 14. Qd3
{[%clk 0:00:26.5]} 14... Ne7 {[%clk 0:00:35.4]} 15. Nf3 {[%clk 0:00:18.7]} 15...
Qh6 {[%clk 0:00:31.5]} 16. Nxh4 {[%clk 0:00:14.2]} 16... g5 {[%clk 0:00:29.8]}
17. Nf3 {[%clk 0:00:08.3]} 17... Bg4 {[%clk 0:00:23.1]} 18. Kg2 {[%clk
0:00:06.4]} 18... O-O-O {[%clk 0:00:18.7]} 19. Rh1 {[%clk 0:00:04.4]} 19... Kb8
{[%clk 0:00:18.4]} 20. Nd2 {[%clk 0:00:04.2]} 20... Bd7 {[%clk 0:00:16.7]} 21.
f3 {[%clk 0:00:03.9]} 21... f5 {[%clk 0:00:16.3]} 22. Rae1 {[%clk 0:00:01.3]}
22... g4 {[%clk 0:00:15.4]} 23. fxg4 {[%clk 0:00:01.2]} 23... fxg4 {[%clk
0:00:14.9]} 0-1

[Event "*** Titled Tuesday Blitz"]
[Site "Chess.com"]
[Date "2020.05.26"]
[Round "5"]
[White "Mikhail_Biryukov"]
[Black "amintabatabaei"]
[Result "0-1"]
[WhiteElo "2641"]
[BlackElo "2914"]
[TimeControl "180+1"]
[EndTime "10:56:04 PDT"]
[Termination "amintabatabaei won by resignation"]

1. e4 {[%clk 0:02:59.1]} 1... e5 {[%clk 0:02:56.4]} 2. Nf3 {[%clk 0:02:59]} 2...
Nc6 {[%clk 0:02:55.3]} 3. d4 {[%clk 0:02:59.2]} 3... exd4 {[%clk 0:02:54.7]} 4.
Nxd4 {[%clk 0:03:00.1]} 4... Nf6 {[%clk 0:02:53.9]} 5. Nc3 {[%clk 0:03:00]} 5...
Bc5 {[%clk 0:02:52.2]} 6. Nb3 {[%clk 0:02:59.7]} 6... Bb6 {[%clk 0:02:51.1]} 7.
Bg5 {[%clk 0:02:59.9]} 7... h6 {[%clk 0:02:48.4]} 8. Bh4 {[%clk 0:02:57.2]} 8...
O-O {[%clk 0:02:45]} 9. Bd3 {[%clk 0:02:53.6]} 9... Re8 {[%clk 0:02:37.2]} 10.
O-O {[%clk 0:02:49.1]} 10... d6 {[%clk 0:02:36]} 11. Kh1 {[%clk 0:02:19]} 11...
Ne5 {[%clk 0:02:30.9]} 12. f4 {[%clk 0:02:14.5]} 12... Ng6 {[%clk 0:02:30.8]}
13. Bg3 {[%clk 0:02:11.3]} 13... c6 {[%clk 0:02:26]} 14. Qd2 {[%clk 0:02:01.3]}
14... Nh5 {[%clk 0:02:15.2]} 15. Bf2 {[%clk 0:01:38.8]} 15... Bxf2 {[%clk
0:02:09.8]} 16. Rxf2 {[%clk 0:01:39.7]} 16... Qh4 {[%clk 0:02:09.5]} 17. f5
{[%clk 0:01:36.2]} 17... Ne5 {[%clk 0:02:04.9]} 18. Kg1 {[%clk 0:01:28.6]} 18...
Ng4 {[%clk 0:01:17.6]} 19. g3 {[%clk 0:01:27]} 19... Qg5 {[%clk 0:01:18]} 20.
Qxg5 {[%clk 0:01:26]} 20... hxg5 {[%clk 0:01:18.9]} 21. Rd2 {[%clk 0:01:24.9]}
21... Nhf6 {[%clk 0:01:13.1]} 22. Be2 {[%clk 0:01:22.1]} 22... d5 {[%clk
0:01:06.7]} 23. Bxg4 {[%clk 0:01:20.9]} 23... Nxg4 {[%clk 0:01:07.6]} 24. exd5
{[%clk 0:01:21]} 24... Bxf5 {[%clk 0:01:06.2]} 25. Nd4 {[%clk 0:01:17.3]} 25...
Bd7 {[%clk 0:00:49.5]} 26. dxc6 {[%clk 0:01:17.1]} 26... Bxc6 {[%clk 0:00:38.2]}
27. Nxc6 {[%clk 0:01:16.9]} 27... bxc6 {[%clk 0:00:39.1]} 28. h3 {[%clk
0:01:12.5]} 28... Ne5 {[%clk 0:00:38.1]} 29. Re2 {[%clk 0:01:02.7]} 29... Rad8
{[%clk 0:00:34.1]} 30. Kf2 {[%clk 0:00:59.9]} 30... f6 {[%clk 0:00:32]} 31. Rd1
{[%clk 0:00:57.7]} 31... Rxd1 {[%clk 0:00:28.9]} 32. Nxd1 {[%clk 0:00:57.3]}
32... Rd8 {[%clk 0:00:28.6]} 33. Nc3 {[%clk 0:00:52.2]} 33... Kf7 {[%clk
0:00:29]} 34. Ne4 {[%clk 0:00:52.3]} 34... Kg6 {[%clk 0:00:29]} 35. Rd2 {[%clk
0:00:52.1]} 35... Rh8 {[%clk 0:00:27.3]} 36. Kg2 {[%clk 0:00:51.2]} 36... Nc4
{[%clk 0:00:26.6]} 37. Rd7 {[%clk 0:00:51]} 37... Re8 {[%clk 0:00:25.9]} 38. Kf3
{[%clk 0:00:33.1]} 38... Ne5+ {[%clk 0:00:25.6]} 0-1